bitfinex/quotes_SOLUSD_20250924
["timestamp","ask_amount","ask_price","bid_price","bid_amount"]
[1758689655990,26.0,208.46,208.38,4.79892504]
[1758689656168,1.82744016,208.45,208.38,7.19762425]
[1758689656495,31.47709175,208.46,208.39,0.68]
[1758689656673,0.68,208.46,208.39,0.68]
[1758689657274,5.47717276,208.46,208.39,0.68]
[1758689657580,5.47717276,208.46,208.38,4.79892504]
[1758689657789,2.50708845,208.45,208.38,4.79892504]
[1758689657984,7.30459527,208.45,208.38,4.79892504]
[1758689658181,5.47750682,208.45,208.38,4.79892504]
[1758689658485,0.68,208.45,208.38,5.47892504]
[1758689658697,0.68,208.45,208.38,7.87762425]
[1758689659905,5.47736868,208.45,208.38,7.87762425]
[1758689660069,30.79707558,208.47,208.39,0.68]
[1758689660271,2.50690932,208.46,208.39,0.68]
[1758689662078,2.50690932,208.46,208.4,4.79846449]
[1758689662288,2.50690932,208.46,208.4,5.50846449]
[1758689662613,7.30399713,208.46,208.4,5.50846449]
[1758689662775,5.47708781,208.46,208.4,5.50846449]
[1758689662980,5.47708781,208.46,208.41,0.71]
[1758689663297,0.66,208.45,208.41,0.71]
[1758689663482,0.66,208.45,208.41,5.50815636]
[1758689663872,0.66,208.45,208.41,0.71]
[1758689664079,0.66,208.44,208.4,4.79843781]
[1758689664281,0.66,208.44,208.4,5.50843781]
[1758689664689,0.66,208.43,208.38,4.79876437]
[1758689664894,0.66,208.42,208.38,5.50876437]
[1758689665281,0.66,208.42,208.38,0.71]
[1758689665481,0.66,208.41,208.36,0.71]
[1758689665703,0.66,208.41,208.37,0.71]
[1758689667406,0.66,208.4,208.31,0.71]
[1758689668494,0.66,208.4,208.31,5.51053269]
[1758689668702,0.66,208.39,208.31,5.51053269]
[1758689668919,26.0,208.37,208.32,0.71]
[1758689669088,26.66,208.37,208.32,0.71]
[1758689669488,0.66,208.36,208.31,4.80053269]
[1758689669712,0.66,208.36,208.31,5.51053269]
[1758689669884,0.66,208.36,208.32,0.71]
[1758689670912,16.79543163,208.39,208.31,4.80053269]
[1758689670913,26.0,208.37,208.33,0.71]
[1758689671120,0.66,208.42,208.33,0.71]
[1758689671298,26.0,208.41,208.33,3.10869921]
[1758689671499,26.0,208.41,208.34,0.71]
[1758689671910,26.0,208.41,208.34,3.10869921]
[1758689672113,26.0,208.41,208.35,3.10869921]
[1758689672420,26.0,208.41,208.36,0.71]
[1758689672660,0.66,208.44,208.36,3.10869921]
[1758689672790,128.9,208.45,208.38,4.79892504]
[1758689672997,0.66,208.46,208.39,0.71]
[1758689673198,2.48715343,208.46,208.39,0.71]
[1758689673419,0.66,208.46,208.39,0.71]
[1758689673727,0.66,208.46,208.39,3.10869921]
[1758689674034,26.66,208.5,208.4,3.10869921]
[1758689674323,1.82709247,208.49,208.41,0.71]
[1758689674493,1.82709247,208.49,208.41,3.10869921]
[1758689674693,1.82709247,208.49,208.42,0.71]
[1758689675100,7.28370415,208.49,208.42,5.50781855]
[1758689675300,31.45661168,208.49,208.42,5.50781855]
[1758689675996,5.45674355,208.48,208.42,5.50781855]
[1758689676200,5.45674355,208.48,208.42,0.71]
[1758689676398,1.82652483,208.47,208.39,0.71]
[1758689676599,0.66,208.46,208.39,0.71]
[1758689677330,0.66,208.46,208.39,3.10869921]
[1758689677641,5.45674355,208.48,208.4,0.71]
[1758689678832,5.45674355,208.48,208.41,4.79823424]
[1758689679411,134.35674355,208.48,208.41,5.50823424]
[1758689679610,0.66,208.47,208.41,5.50823424]
[1758689680702,5.45694278,208.47,208.41,5.50823424]
[1758689681103,5.45694278,208.47,208.41,0.71]
[1758689682336,5.45694278,208.47,208.4,4.79845436]
[1758689682541,0.66,208.46,208.4,4.79845436]
[1758689682705,7.28455587,208.46,208.4,4.79845436]
[1758689682910,5.45719181,208.46,208.4,5.50845436]
[1758689683228,2.48733863,208.45,208.38,4.79870488]
[1758689683417,0.66,208.44,208.38,4.79870488]
[1758689683622,0.66,208.43,208.38,4.79870488]
[1758689683819,1.82733863,208.45,208.38,0.71]
[1758689684032,2.48733863,208.45,208.38,0.71]
[1758689685149,4.79754365,208.44,208.38,0.71]
[1758689685330,2.48815804,208.43,208.36,4.79917094]
[1758689685540,2.48815804,208.43,208.36,5.50917094]
[1758689686051,0.66,208.43,208.36,5.50917094]
[1758689686227,2.48824291,208.43,208.36,5.50917094]
[1758689687350,4.79800403,208.42,208.36,5.50917094]
[1758689687528,4.79800403,208.42,208.37,0.71]
[1758689687730,5.45800403,208.42,208.36,4.79917094]
[1758689688049,5.45800403,208.42,208.35,43.86959594]
[1758689688951,5.45800403,208.42,208.32,54.0252614]
[1758689688952,0.66,208.41,208.32,28.0252614]
[1758689689144,0.66,208.41,208.31,12.00094011]
[1758689689145,0.66,208.4,208.33,39.05]
[1758689689663,0.66,208.4,208.33,0.71]
[1758689689957,26.0,208.39,208.31,5.51053766]
[1758689690129,2.48979494,208.38,208.3,38.34]
[1758689690329,2.48979494,208.37,208.3,38.34]
[1758689690542,0.69,208.36,208.3,38.34]
[1758689690745,0.69,208.35,208.27,0.7]
[1758689690955,4.7998464,208.34,208.27,5.50145751]
[1758689691160,5.4898464,208.34,208.27,5.50145751]
[1758689691328,5.4898464,208.34,208.3,26.0]
[1758689693457,5.4898464,208.34,208.28,5.50122141]
[1758689693846,0.69,208.33,208.26,64.34]
[1758689694048,0.69,208.33,208.27,0.7]
[1758689695746,0.69,208.33,208.28,4.80122911]
[1758689695947,0.69,208.33,208.29,0.7]
[1758689696647,5.49009709,208.33,208.29,0.7]
[1758689697071,4.80009709,208.33,208.29,0.7]
[1758689697867,26.0,208.32,208.24,0.2]
[1758689698174,13.59559401,208.3,208.24,0.2]
[1758689698381,26.0,208.27,208.24,0.2]
[1758689698744,26.69,208.27,208.24,0.2]
[1758689698949,0.69,208.29,208.24,0.2]
[1758689699153,26.69,208.29,208.24,0.9]
[1758689699351,26.0,208.29,208.25,0.7]
[1758689700055,26.69,208.29,208.25,0.7]
[1758689700254,31.49100338,208.29,208.25,0.7]
[1758689700556,0.69,208.32,208.26,0.7]
[1758689700763,5.49032921,208.32,208.26,0.7]
[1758689701974,5.49032921,208.32,208.26,5.50166107]
[1758689703583,179.21826474,208.37,208.26,4.80166107]
[1758689703873,0.69,208.35,208.27,0.7]
[1758689704078,5.48909434,208.38,208.3,1.53463302]
[1758689704283,0.69,208.38,208.31,2.23463302]
[1758689704578,5.48896924,208.38,208.31,0.7]
[1758689704751,5.48896924,208.38,208.28,0.7]
[1758689705463,17.48628184,208.38,208.28,5.50102117]
[1758689705668,0.69,208.37,208.28,5.50102117]
[1758689705863,0.69,208.36,208.28,6.33565419]
[1758689706178,16.79628184,208.38,208.29,0.7]
[1758689706376,0.69,208.35,208.29,0.7]
[1758689707354,5.48972768,208.35,208.29,0.7]
[1758689707961,5.48972768,208.35,208.29,5.50096745]
[1758689708551,0.69,208.35,208.29,5.50096745]
[1758689708746,0.69,208.35,208.29,7.03560047]
[1758689709482,0.69,208.36,208.3,0.7]
[1758689709781,31.48892504,208.38,208.3,0.7]
[1758689710350,26.69,208.38,208.3,2.23463302]
[1758689710551,26.69,208.38,208.31,0.7]
[1758689711062,26.0,208.38,208.31,0.7]
[1758689711262,26.0,208.38,208.32,4.80030721]
[1758689711473,0.69,208.4,208.33,0.7]
[1758689711677,129.59,208.42,208.33,0.7]
[1758689711979,155.59,208.42,208.33,0.7]
[1758689712981,155.59,208.42,208.32,6.33494023]
[1758689712982,172.38301859,208.42,208.32,4.80008526]
[1758689713155,2.51229826,208.41,208.32,5.50008526]
[1758689713356,0.69,208.4,208.33,0.7]
[1758689714169,0.69,208.41,208.33,5.49994176]
[1758689714770,0.69,208.41,208.33,7.03457478]
[1758689715185,4.79869475,208.39,208.33,7.03457478]
[1758689715680,4.79869475,208.39,208.34,0.72]
[1758689715882,5.51869475,208.39,208.34,0.72]
[1758689716073,0.72,208.39,208.35,0.72]
[1758689716271,4.79823424,208.41,208.33,6.33457478]
[1758689716464,0.72,208.39,208.32,5.52025263]
[1758689716670,0.72,208.39,208.32,7.05488565]
[1758689716864,0.72,208.39,208.33,0.72]
[1758689717070,4.79823424,208.41,208.33,2.25463302]
[1758689717293,4.79823424,208.41,208.35,1.53463302]
[1758689717486,4.79823424,208.41,208.36,1.53463302]
[1758689717671,4.79823424,208.41,208.37,0.72]
[1758689717990,5.51823424,208.41,208.35,2.25463302]
[1758689718285,0.72,208.4,208.32,0.72]
[1758689718997,26.0,208.38,208.29,0.72]
[1758689719180,133.69928375,208.37,208.3,1.53463302]
[1758689719371,133.69928375,208.37,208.3,2.25463302]
[1758689719372,134.41928375,208.37,208.3,2.25463302]
[1758689719578,134.41928375,208.37,208.3,7.05539909]
[1758689719879,0.72,208.36,208.3,7.05539909]
[1758689720083,0.72,208.36,208.3,2.25463302]
[1758689720274,0.72,208.36,208.3,0.72]
[1758689720473,0.72,208.36,208.3,5.52076436]
[1758689720779,133.69928375,208.37,208.31,0.71]
[1758689720965,128.9,208.37,208.31,0.71]
[1758689721165,133.69921111,208.37,208.31,2.24463302]
[1758689721381,128.9,208.37,208.32,1.53463302]
[1758689721593,128.9,208.37,208.33,2.24463302]
[1758689721777,128.9,208.37,208.34,0.71]
[1758689721978,128.9,208.37,208.31,4.80047261]
[1758689721979,129.57,208.37,208.31,7.04510563]
[1758689722379,134.36915738,208.37,208.31,7.04510563]
[1758689723115,26.0,208.4,208.32,0.71]
[1758689724776,0.67,208.48,208.42,14.42203687]
[1758689724978,1.82490863,208.48,208.42,14.42203687]
[1758689725284,4.79501318,208.55,208.45,26.0]
[1758689725494,0.67,208.5,208.43,2.24463302]
[1758689725672,2.49489919,208.53,208.47,26.0]
[1758689725871,14.26559401,208.55,208.47,2.24463302]
[1758689726094,1.82496098,208.54,208.49,1.53463302]
[1758689726289,0.67,208.57,208.5,2.24463302]
[1758689726693,0.67,208.56,208.48,0.71]
[1758689726895,2.49420819,208.56,208.47,1.53463302]
[1758689727084,0.67,208.55,208.46,66.50463302]
[1758689727285,5.46511274,208.55,208.48,1.53463302]
[1758689727796,2.49351239,208.54,208.47,26.0]
[1758689727988,0.67,208.53,208.44,38.97]
[1758689728177,0.67,208.52,208.44,38.97]
[1758689728379,0.67,208.51,208.44,38.97]
[1758689728775,0.67,208.5,208.42,26.0]
[1758689729086,0.67,208.49,208.38,2.24463302]
[1758689729305,4.79685326,208.47,208.38,45.28340838]
[1758689729489,16.78898642,208.47,208.38,26.71]
[1758689729806,16.78898642,208.47,208.36,4.79918815]
[1758689729807,0.67,208.46,208.36,4.79918815]
[1758689729990,0.67,208.45,208.36,4.79918815]
[1758689730189,0.67,208.44,208.36,4.79918815]
[1758689730391,4.79685326,208.47,208.37,2.24463302]
[1758689730588,4.79685326,208.47,208.36,4.79918815]
[1758689730589,5.46685326,208.47,208.39,1.53463302]
[1758689730916,5.46685326,208.47,208.4,0.71]
[1758689731411,0.67,208.46,208.38,0.71]
[1758689731783,0.67,208.46,208.36,26.0]
[1758689731986,0.67,208.45,208.36,26.71]
[1758689732295,0.67,208.45,208.36,33.04398128]
[1758689732486,0.67,208.45,208.37,0.71]
[1758689732891,0.67,208.51,208.43,1.53463302]
[1758689733079,26.0,208.49,208.41,0.71]
[1758689733282,4.79685326,208.47,208.41,0.71]
[1758689734694,0.67,208.46,208.39,1.53463302]
[1758689734887,0.67,208.45,208.38,2.24463302]
[1758689735228,26.67,208.44,208.36,0.71]
[1758689735379,26.67,208.44,208.36,2.24463302]
[1758689735579,26.0,208.44,208.38,1.53463302]
[1758689735801,26.0,208.44,208.39,0.71]
[1758689735993,26.67,208.44,208.39,0.71]
[1758689736292,26.67,208.44,208.37,2.24463302]
[1758689736813,4.79777383,208.43,208.37,7.04376306]
[1758689737203,4.79777383,208.43,208.37,5.50913004]
[1758689737397,4.79777383,208.43,208.37,7.04376306]
[1758689737893,0.67,208.49,208.41,1.53463302]
[1758689738094,26.0,208.47,208.42,2.24463302]
[1758689738311,11.99050644,208.5,208.45,1.53463302]
[1758689738312,4.79631967,208.5,208.45,1.53463302]
[1758689738484,4.79594113,208.51,208.46,0.71]
[1758689738815,4.79594113,208.51,208.4,38.24]
[1758689738816,26.0,208.5,208.44,2.24463302]
[1758689738994,26.0,208.5,208.44,0.71]
[1758689739195,5.46594113,208.51,208.44,0.71]
[1758689739397,5.46594113,208.51,208.43,27.53463302]
[1758689739608,11.98885038,208.53,208.43,27.53463302]
[1758689739920,2.49158236,208.52,208.43,28.24463302]
[1758689740815,1.82158236,208.52,208.43,0.71]
[1758689741030,0.67,208.51,208.4,38.93]
[1758689741198,0.67,208.5,208.41,2.24463302]
[1758689741521,0.67,208.49,208.41,2.24463302]
[1758689741712,16.78818111,208.48,208.41,0.71]
[1758689741914,16.78818111,208.48,208.41,2.24463302]
[1758689742724,16.78818111,208.48,208.41,3.10755169]
[1758689743817,0.67,208.47,208.4,2.39755169]
[1758689743999,0.67,208.47,208.39,2.39755169]
[1758689744310,16.78818111,208.48,208.4,2.39755169]
[1758689744311,0.67,208.46,208.4,2.39755169]
[1758689744710,0.67,208.46,208.41,2.39755169]
[1758689744916,0.67,208.45,208.39,0.71]
[1758689745212,0.67,208.45,208.39,3.10755169]
[1758689745398,0.67,208.47,208.39,3.10755169]
[1758689746016,4.79708337,208.46,208.39,3.10755169]
[1758689747499,4.79708337,208.46,208.39,7.90620577]
[1758689748507,4.79708337,208.46,208.4,3.10755169]
[1758689749428,5.46708337,208.46,208.4,0.71]
[1758689751338,5.46708337,208.46,208.33,11.99155794]
[1758689751339,26.0,208.43,208.33,0.72]
[1758689751517,0.69,208.42,208.33,0.72]
[1758689752435,0.69,208.42,208.3,4.80054647]
[1758689752743,26.0,208.39,208.31,0.72]
[1758689752920,26.69,208.39,208.31,0.72]
[1758689753231,4.79892504,208.38,208.31,0.72]
[1758689754924,17.48623764,208.38,208.31,0.72]
[1758689755533,17.48623764,208.38,208.31,5.52052681]
[1758689755930,17.48623764,208.38,208.31,0.72]
[1758689757429,17.48623764,208.38,208.3,0.72]
[1758689757430,26.0,208.35,208.3,0.72]
[1758689757836,26.0,208.35,208.31,0.72]
[1758689758209,26.0,208.35,208.29,2.39755169]
[1758689758406,26.69,208.35,208.29,3.11755169]
[1758689758708,0.69,208.35,208.29,3.11755169]
[1758689759433,0.69,208.35,208.3,4.80076812]
[1758689759731,0.69,208.35,208.31,0.72]
[1758689759930,26.0,208.38,208.31,0.72]
[1758689760138,0.69,208.4,208.33,2.39755169]
[1758689760438,26.69,208.4,208.33,3.11755169]
[1758689760824,31.4885578,208.4,208.33,3.11755169]
[1758689761021,31.4885578,208.4,208.33,0.72]
[1758689761427,43.70778537,208.43,208.37,4.79915534]
[1758689761629,43.70778537,208.43,208.37,7.19670703]
[1758689761816,0.69,208.43,208.37,7.19670703]
[1758689762019,0.69,208.43,208.37,7.91670703]
[1758689763425,0.69,208.42,208.26,14.33302429]
[1758689763615,26.0,208.4,208.3,0.72]
[1758689763821,0.69,208.39,208.3,0.72]
[1758689764122,0.69,208.39,208.3,3.11755169]
[1758689764321,0.69,208.39,208.31,3.11755169]
[1758689764521,0.69,208.39,208.32,0.72]
[1758689765035,30.79892504,208.38,208.3,0.72]
[1758689765351,0.69,208.37,208.28,3.11755169]
[1758689765828,26.0,208.35,208.26,0.72]
[1758689766148,26.0,208.35,208.26,5.52167704]
[1758689766352,0.69,208.34,208.26,5.52167704]
[1758689766915,4.8000768,208.33,208.26,5.52167704]
[1758689767712,4.8000768,208.33,208.26,0.72]
[1758689767916,0.69,208.32,208.24,46.31952211]
[1758689768116,4.8000768,208.33,208.25,3.11755169]
[1758689768334,4.8000768,208.33,208.26,0.72]
[1758689768943,0.69,208.32,208.26,0.72]
[1758689769142,0.69,208.32,208.24,0.2]
[1758689769319,26.0,208.3,208.24,0.2]
[1758689769523,0.69,208.29,208.24,0.2]
[1758689770548,26.0,208.25,208.24,0.2]
[1758689770725,26.69,208.25,208.24,0.2]
[1758689770920,31.49192076,208.25,208.24,0.2]
[1758689772419,35.36086029,208.25,208.24,0.2]
[1758689773929,26.0,208.25,208.24,0.2]
[1758689774131,0.68,208.28,208.24,0.2]
[1758689774445,26.0,208.27,208.24,0.2]
[1758689774944,26.68,208.27,208.24,0.2]
[1758689775927,4.80169019,208.26,208.24,0.2]
[1758689777848,26.68,208.27,208.24,0.2]
[1758689778232,31.48150727,208.27,208.24,0.2]
[1758689778428,0.68,208.26,208.24,0.2]
[1758689778629,0.68,208.25,208.24,0.2]
[1758689779732,38.88,208.27,208.24,0.2]
[1758689779929,26.0,208.25,208.24,0.2]
[1758689782162,4.80165098,208.27,208.24,0.2]
[1758689782345,30.80165098,208.27,208.24,0.2]
[1758689784046,0.71,208.26,208.24,0.2]
[1758689784535,0.71,208.25,208.24,0.2]
[1758689785942,5.51192076,208.25,208.24,0.2]
[1758689787245,19.10751477,208.25,208.24,0.2]
[1758689787846,30.80238198,208.23,208.22,0.2]
[1758689788351,45.10797599,208.23,208.22,0.2]
[1758689789061,83.30797599,208.23,208.22,0.2]
[1758689789755,45.10797599,208.23,208.22,0.2]
[1758689789938,83.30797599,208.23,208.22,0.2]
[1758689794466,30.80238198,208.23,208.22,0.2]
[1758689794662,4.80215205,208.24,208.22,0.87]
[1758689794840,26.0,208.23,208.22,0.2]
[1758689795444,26.0,208.23,208.22,0.87]
[1758689796165,26.0,208.24,208.22,0.87]
[1758689796870,30.80221205,208.24,208.22,0.87]
[1758689797046,26.0,208.24,208.22,0.87]
[1758689797366,26.71,208.23,208.22,0.2]
[1758689797752,26.0,208.23,208.22,0.2]
[1758689798866,30.80238198,208.23,208.22,0.2]
[1758689801863,26.0,208.23,208.22,0.87]
[1758689802170,138.70150147,208.27,208.22,0.87]
[1758689802344,26.0,208.24,208.22,0.87]
[1758689802541,138.70150147,208.27,208.23,0.67]
[1758689802745,138.70150147,208.27,208.24,0.67]
[1758689802943,138.70150147,208.27,208.25,0.67]
[1758689803146,133.9,208.27,208.22,5.00253693]
[1758689803370,133.9,208.27,208.23,0.67]
[1758689803580,133.9,208.27,208.22,5.00253693]
[1758689803776,138.70148745,208.27,208.24,0.67]
[1758689803978,138.70148745,208.27,208.22,0.87]
[1758689804183,138.70148745,208.27,208.23,0.67]
[1758689804471,138.7014786,208.27,208.24,0.67]
[1758689805575,138.7014786,208.27,208.25,0.67]
[1758689806669,138.7014786,208.27,208.23,0.67]
[1758689806872,138.7014786,208.27,208.24,0.67]
[1758689807169,133.9,208.27,208.25,0.67]
[1758689807358,133.9,208.27,208.22,5.00253727]
[1758689807546,133.9,208.27,208.26,0.67]
[1758689809459,133.9,208.27,208.23,0.67]
[1758689809663,133.9,208.27,208.24,0.67]
[1758689809851,138.70146228,208.27,208.24,0.67]
[1758689810269,133.9,208.27,208.25,0.67]
[1758689810451,133.9,208.27,208.22,6.42190573]
[1758689810676,133.9,208.27,208.25,0.65]
[1758689811975,138.70154161,208.27,208.25,0.65]
[1758689812163,138.70154161,208.27,208.23,0.65]
[1758689812674,138.70154161,208.27,208.24,0.65]
[1758689812982,133.9,208.26,208.22,0.85]
[1758689813550,138.70177389,208.26,208.22,0.2]
[1758689813785,138.70177389,208.26,208.22,0.85]
[1758689814178,138.70177389,208.26,208.23,0.65]
[1758689814372,0.71,208.25,208.22,0.2]
[1758689814685,26.0,208.23,208.22,0.2]
[1758689815058,26.71,208.23,208.22,0.2]
[1758689815796,31.51238198,208.23,208.22,0.2]
[1758689816788,13.59559401,208.29,208.22,0.2]
[1758689816789,0.71,208.29,208.22,0.2]
[1758689816962,0.71,208.32,208.23,1.41931144]
[1758689817167,0.71,208.31,208.24,0.65]
[1758689817359,26.0,208.3,208.24,0.65]
[1758689818759,4.8009986,208.29,208.24,0.65]
[1758689819079,4.8009986,208.29,208.25,0.65]
[1758689819391,5.5109986,208.29,208.25,0.65]
[1758689820269,5.5109986,208.29,208.23,2.06931144]
[1758689820468,0.71,208.28,208.23,0.65]
[1758689820672,4.8009986,208.29,208.24,0.65]
[1758689820983,5.5109986,208.29,208.24,0.65]
[1758689823283,0.71,208.28,208.22,1.61931144]
[1758689823589,0.71,208.27,208.22,0.2]
[1758689823778,0.71,208.27,208.22,0.85]
[1758689824489,4.80169019,208.26,208.22,0.85]
[1758689824689,5.51169019,208.26,208.22,0.85]
[1758689824866,4.80169019,208.26,208.22,0.2]
[1758689825067,0.71,208.27,208.22,0.85]
[1758689825392,0.71,208.27,208.23,0.65]
[1758689825688,133.9,208.28,208.24,1.41931144]
[1758689825896,133.9,208.28,208.25,1.41931144]
[1758689826093,3.92989831,208.34,208.22,5.00256965]
[1758689826094,0.71,208.33,208.27,1.41931144]
[1758689826294,133.9,208.34,208.3,1.41931144]
[1758689826468,133.9,208.34,208.22,17.0091012]
[1758689826469,133.9,208.34,208.32,4.80030721]
[1758689826673,38.14,208.38,208.32,6.21961865]
[1758689826674,4.79893499,208.38,208.32,6.21961865]
[1758689826873,1.82923008,208.37,208.33,2.06931144]
[1758689827091,0.71,208.4,208.35,1.41931144]
[1758689827292,1.82837116,208.41,208.38,1.41931144]
[1758689827465,0.71,208.42,208.38,1.41931144]
[1758689827670,26.0,208.42,208.38,2.06931144]
[1758689828184,0.71,208.44,208.39,2.06931144]
[1758689828489,0.71,208.43,208.39,1.41931144]
[1758689828691,4.79759182,208.44,208.39,2.06931144]
[1758689828894,5.50759182,208.44,208.39,2.06931144]
[1758689829074,0.71,208.43,208.34,0.65]
[1758689829276,2.53490075,208.43,208.34,2.06931144]
[1758689829575,2.53490075,208.43,208.25,40.6172586]
[1758689829576,26.0,208.4,208.25,40.6172586]
[1758689829762,26.0,208.4,208.3,1.41931144]
[1758689829763,2.53483535,208.39,208.3,1.41931144]
[1758689829967,0.71,208.38,208.31,2.06931144]
[1758689830584,0.71,208.38,208.32,4.80030721]
[1758689830781,0.71,208.38,208.32,6.21961865]
[1758689830991,64.12,208.4,208.33,2.06931144]
[1758689831176,26.0,208.4,208.33,2.06931144]
[1758689831382,26.0,208.4,208.32,4.80030721]
[1758689831383,0.71,208.39,208.32,4.80030721]
[1758689831568,0.71,208.39,208.33,0.65]
[1758689831987,0.71,208.39,208.33,5.45006686]
[1758689832366,5.5086977,208.39,208.33,0.65]
[1758689833579,17.50543458,208.39,208.29,4.80081213]
[1758689833779,4.7986977,208.39,208.3,2.08931144]
[1758689833981,4.7986977,208.39,208.32,4.80030721]
[1758689833982,30.7986977,208.39,208.32,4.80030721]
[1758689834190,30.7986977,208.39,208.33,0.67]
[1758689836012,31.4786977,208.39,208.33,0.67]
[1758689836601,31.4786977,208.39,208.3,1.41931144]
[1758689836602,31.4786977,208.39,208.31,0.67]
[1758689836816,31.4786977,208.39,208.31,5.47039968]
[1758689837316,4.79915534,208.37,208.31,0.67]
[1758689837681,0.68,208.36,208.29,4.80098438]
[1758689837986,160.58,208.35,208.28,5.47118624]
[1758689839295,159.9,208.35,208.29,2.08931144]
[1758689839611,0.68,208.34,208.27,0.67]
[1758689839919,164.69969311,208.35,208.28,1.41931144]
[1758689840285,164.69969311,208.35,208.29,0.67]
[1758689840487,165.39969311,208.35,208.29,0.67]
[1758689840894,165.39969311,208.35,208.28,4.80119637]
[1758689841099,0.7,208.34,208.27,2.09931144]
[1758689841295,0.7,208.33,208.27,0.68]
[1758689842403,0.7,208.33,208.27,6.90057585]
[1758689842600,159.9,208.35,208.28,2.09931144]
[1758689842808,159.9,208.35,208.29,0.68]
[1758689843196,0.7,208.34,208.29,4.80091358]
[1758689843394,0.7,208.34,208.29,5.48091358]
[1758689844585,164.69965064,208.35,208.3,0.68]
[1758689844800,165.39965064,208.35,208.3,0.68]
[1758689845688,0.7,208.34,208.28,6.90054055]
[1758689846813,133.9,208.35,208.31,1.41931144]
[1758689847015,0.7,208.41,208.34,1.41931144]
[1758689847335,0.7,208.39,208.28,16.80430189]
[1758689847496,26.7,208.38,208.31,1.41931144]
[1758689847692,4.79938567,208.36,208.3,0.68]
[1758689847994,0.7,208.36,208.3,5.4806274]
[1758689848397,26.0,208.38,208.26,6.9010006]
[1758689848398,0.7,208.35,208.26,6.9010006]
[1758689848599,26.7,208.34,208.26,5.48168916]
[1758689848792,26.7,208.34,208.26,6.9010006]
[1758689848992,0.7,208.33,208.26,5.48168916]
[1758689849693,0.7,208.33,208.26,0.68]
[1758689849895,4.80030721,208.32,208.23,2.09931144]
[1758689850118,0.7,208.31,208.23,0.68]
[1758689850297,0.7,208.31,208.23,2.09931144]
[1758689850615,0.7,208.31,208.24,2.09931144]
[1758689851116,4.80076812,208.3,208.24,5.48214686]
[1758689852525,0.7,208.31,208.24,5.48214686]
[1758689852735,5.50069821,208.31,208.24,0.68]
[1758689853497,17.50204236,208.31,208.22,1.61931144]
[1758689853731,0.7,208.3,208.22,0.2]
[1758689855204,26.0,208.26,208.22,0.2]
[1758689855404,0.7,208.25,208.22,0.2]
[1758689855628,26.0,208.26,208.22,0.2]
[1758689855629,0.7,208.24,208.22,0.2]
[1758689856514,0.7,208.23,208.22,0.2]
[1758689857226,5.50238198,208.23,208.22,0.2]
[1758689868010,4.80238198,208.23,208.22,0.2]
[1758689868402,43.58207236,208.25,208.22,0.2]
[1758689868625,5.50207236,208.25,208.19,4.9912995]
[1758689868802,0.7,208.25,208.19,4.9912995]
[1758689869210,0.7,208.24,208.19,4.9912995]
[1758689870905,159.9,208.26,208.2,2.91838205]
[1758689871111,164.70173726,208.26,208.21,0.7]
[1758689871316,165.41173726,208.26,208.21,0.7]
[1758689872148,133.9,208.25,208.21,0.7]
[1758689873910,133.9,208.25,208.21,5.50282068]
[1758689874111,133.9,208.25,208.23,2.21838205]
[1758689874335,133.9,208.25,208.24,0.7]
[1758689874831,0.71,208.3,208.24,0.7]